bitfinex/quotes_BTCUSD_20250330
["timestamp","ask_amount","ask_price","bid_price","bid_amount"]
[1743349751709,8.9e-07,83032.0,83031.0,1.09252083]
[1743349762607,0.07600089,83032.0,83031.0,0.95540083]
[1743349762941,0.09486303,83032.0,83031.0,1.09252083]
[1743349763542,0.09486303,83032.0,83031.0,1.09248083]
[1743349764279,0.10688632,83032.0,83031.0,1.09248083]
[1743349764641,0.10688632,83032.0,83031.0,0.70248483]
[1743349764848,0.11623675,83032.0,83031.0,0.85160783]
[1743349765888,0.11623675,83032.0,83031.0,1.08748083]
[1743349766049,0.18321375,83032.0,83031.0,1.08348083]
[1743349766256,0.18321375,83032.0,83031.0,1.08848083]
[1743349766453,0.18321375,83032.0,83031.0,1.09148083]
[1743349766688,0.16435161,83032.0,83031.0,1.08648083]
[1743349767092,0.16435161,83032.0,83031.0,1.09048083]
[1743349767662,0.08535132,83032.0,83031.0,1.09048083]
[1743349767860,0.07600089,83032.0,83031.0,1.09048083]
[1743349768095,0.08811946,83032.0,83031.0,1.09048083]
[1743349769283,0.09746082,83032.0,83031.0,1.09048083]
[1743349769481,0.08811946,83032.0,83031.0,1.09048083]
[1743349769848,0.10698262,83032.0,83031.0,1.09048083]
[1743349774277,0.10698262,83032.0,83031.0,0.70048483]
[1743349774475,0.10698262,83032.0,83031.0,0.83760483]
[1743349774677,0.10698262,83032.0,83031.0,0.70048483]
[1743349774829,0.11628337,83032.0,83031.0,0.83760483]
[1743349775214,0.11628337,83032.0,83031.0,0.83460483]
[1743349775441,0.11628337,83032.0,83031.0,0.83060483]
[1743349775637,0.11628337,83032.0,83031.0,0.84564783]
[1743349775809,0.10698262,83032.0,83031.0,0.84464783]
[1743349776211,0.10698262,83032.0,83031.0,0.84564783]
[1743349776747,0.08811946,83032.0,83031.0,0.84364783]
[1743349777103,0.08811946,83032.0,83031.0,0.84564783]
[1743349778126,0.08811946,83032.0,83031.0,0.83360483]
[1743349778488,0.0974195,83032.0,83031.0,0.83360483]
[1743349778885,0.0974195,83032.0,83031.0,0.84564783]
[1743349779071,0.08811946,83032.0,83031.0,0.84564783]
[1743349781135,0.10698346,83032.0,83031.0,0.84564783]
[1743349783576,0.10698346,83032.0,83031.0,0.83360483]
[1743349783935,0.10698346,83032.0,83031.0,1.07447783]
[1743349784110,0.11628387,83032.0,83031.0,1.07447783]
[1743349785028,0.11628387,83032.0,83031.0,0.69648483]
[1743349785284,0.42832687,83032.0,83031.0,0.5762]
[1743349785488,0.42832687,83032.0,83031.0,0.14012]
[1743349786112,0.42832687,83032.0,83031.0,0.13712]
[1743349786300,0.42832687,83032.0,83031.0,0.13812]
[1743349786704,0.42832687,83032.0,83031.0,0.13712]
[1743349787007,0.4162083,83032.0,83031.0,0.13712]
[1743349787209,0.53649313,83032.0,83031.0,0.13712]
[1743349787370,0.51762913,83032.0,83031.0,0.13712]
[1743349787569,0.3973443,83032.0,83031.0,0.13712]
[1743349787984,0.8136443,83032.0,83031.0,0.13712]
[1743349789909,0.82592701,83032.0,83031.0,0.13712]
[1743349790308,0.84479226,83032.0,83031.0,0.13712]
[1743349790716,0.44446655,83032.0,83031.0,0.25740483]
[1743349790921,0.44446655,83032.0,83031.0,0.26944783]
[1743349791141,0.4564373,83032.0,83031.0,0.26944783]
[1743349792166,0.4564373,83032.0,83031.0,0.27044783]
[1743349793778,0.0401373,83032.0,83031.0,0.27044783]
[1743349795180,0.01886614,83032.0,83031.0,0.27044783]
[1743349795748,0.03119566,83032.0,83031.0,0.27044783]
[1743349796838,0.01233041,83032.0,83031.0,0.27044783]
[1743349799622,0.0311948,83032.0,83031.0,0.27044783]
[1743349800236,0.0311948,83032.0,83031.0,0.12128483]
[1743349800435,0.07970975,83032.0,83031.0,0.001]
[1743349800640,0.14877789,83032.0,83031.0,0.13808]
[1743349800886,0.14576675,83032.0,83031.0,0.13808]
[1743349801057,0.11852815,83032.0,83031.0,0.13808]
[1743349801492,0.13057115,83032.0,83031.0,0.001]
[1743349801656,0.13057115,83032.0,83031.0,0.13808]
[1743349802550,0.11852815,83032.0,83031.0,0.13808]
[1743349803143,0.11852815,83032.0,83031.0,0.001]
[1743349803314,0.11852815,83032.0,83031.0,0.13808]
[1743349806038,0.46469939,83032.0,83031.0,0.13808]
[1743349806216,0.47674239,83032.0,83031.0,0.13808]
[1743349806620,0.457878,83032.0,83031.0,0.13808]
[1743349807186,0.457878,83032.0,83031.0,0.001]
[1743349807476,0.09966376,83032.0,83031.0,0.13808]
[1743349807803,0.02156376,83032.0,83031.0,0.13808]
[1743349809305,0.27447676,83032.0,83031.0,0.13808]
[1743349809706,0.29334153,83032.0,83031.0,0.13808]
[1743349810733,0.05247153,83032.0,83031.0,0.13808]
[1743349811362,0.04042853,83032.0,83031.0,0.390996]
[1743349816568,0.04042853,83032.0,83031.0,0.51128083]
[1743349816695,0.02156376,83032.0,83031.0,0.51128083]
[1743349818365,0.00923424,83032.0,83031.0,0.51128083]
[1743349820083,0.00923424,83032.0,83031.0,0.53489966]
[1743349821683,0.00923424,83032.0,83031.0,0.66139966]
[1743349822651,0.00923424,83032.0,83031.0,0.44601966]
[1743349822855,0.00923424,83032.0,83031.0,0.37420083]
[1743349823135,0.00923424,83032.0,83031.0,0.51028083]
[1743349823442,8.9e-07,83032.0,83031.0,0.37420083]
[1743349823642,0.3499264,83032.0,83031.0,0.001]
[1743349823870,0.39852101,83032.0,83031.0,0.13808]
[1743349824088,0.70699296,83032.0,83031.0,0.13808]
[1743349824291,0.70699296,83032.0,83031.0,0.001]
[1743349824672,1.12329296,83032.0,83031.0,0.001]
[1743349824871,1.18713381,83032.0,83031.0,0.001]
[1743349825144,0.32658385,83031.0,83030.0,0.000337]
[1743349825351,0.45515191,83031.0,83030.0,0.000337]
[1743349828113,0.87145191,83031.0,83030.0,0.000337]
[1743349830897,0.89031828,83031.0,83030.0,0.000337]
[1743349831607,0.89791883,83031.0,83030.0,0.000337]
[1743349836657,0.87905246,83031.0,83030.0,0.000337]
[1743349839593,0.8979187,83031.0,83030.0,0.000337]
[1743349840259,0.540908,83019.0,83018.0,0.000337]
[1743349840460,0.540908,83019.0,83018.0,0.00041652]
[1743349840461,1.06389385,83019.0,83018.0,0.00041652]
[1743349840647,1.07968262,83019.0,83018.0,0.00041652]
[1743349841044,1.098552,83019.0,83018.0,0.00041652]
[1743349841282,1.21883683,83019.0,83018.0,0.00041652]
[1743349842254,1.21983683,83019.0,83018.0,0.00041652]
[1743349843922,1.22283683,83019.0,83018.0,0.00041652]
[1743349846431,1.20396745,83019.0,83018.0,0.00041652]
[1743349849567,1.22283705,83019.0,83018.0,0.00041652]
[1743349849766,1.27033705,83019.0,83018.0,0.00041652]
[1743349855420,1.02245222,83019.0,83018.0,0.00041652]
[1743349856799,1.00358262,83019.0,83018.0,0.00041652]
[1743349858290,0.73608877,83019.0,83018.0,0.00041652]
[1743349858525,0.74813377,83019.0,83018.0,0.00041652]
[1743349859697,0.76700244,83019.0,83018.0,0.00041652]
[1743349859870,0.87050788,83019.0,83018.0,0.00041652]
[1743349860420,0.75495744,83019.0,83018.0,0.24132752]
[1743349860633,0.33865744,83019.0,83018.0,0.37365735]
[1743349860818,0.03865744,83019.0,83018.0,0.50205735]
[1743349861370,0.03565744,83019.0,83018.0,0.50205735]
[1743349861578,0.03465744,83019.0,83018.0,0.50205735]
[1743349861919,0.03865744,83019.0,83018.0,0.50205735]
[1743349863020,0.03565744,83019.0,83018.0,0.50205735]
[1743349863452,0.03765744,83019.0,83018.0,0.50205735]
[1743349864240,0.03565744,83019.0,83018.0,0.50205735]
[1743349864956,0.03665744,83019.0,83018.0,0.50205735]
[1743349865797,0.03665744,83019.0,83018.0,0.24910135]
[1743349866150,0.12091128,83019.0,83018.0,0.16770135]
[1743349866450,0.41709905,83019.0,83018.0,0.00041652]
[1743349866650,0.42862846,83019.0,83018.0,0.00041652]
[1743349868755,0.34437462,83019.0,83018.0,0.00041652]
[1743349869555,0.36324314,83019.0,83018.0,0.00041652]
[1743349869988,0.34870229,83019.0,83018.0,0.00041652]
[1743349870209,0.75295729,83019.0,83018.0,0.00041652]
[1743349870413,0.76500229,83019.0,83018.0,0.00041652]
[1743349870755,1.00591029,83019.0,83018.0,0.00041652]
[1743349870975,1.00591029,83019.0,83018.0,0.13745652]
[1743349871179,1.06680988,83019.0,83018.0,0.13745652]
[1743349871915,1.06680988,83019.0,83018.0,0.00041652]
[1743349872330,1.08135073,83019.0,83018.0,0.00041652]
[1743349872469,1.15665073,83019.0,83018.0,0.00041652]
[1743349874020,1.09575114,83019.0,83018.0,0.00041652]
[1743349874223,1.09375114,83019.0,83018.0,0.00041652]
[1743349874484,1.09775114,83019.0,83018.0,0.00041652]
[1743349876586,1.07888262,83019.0,83018.0,0.00041652]
[1743349879561,1.09775196,83019.0,83018.0,0.00041652]
[1743349880098,1.21803679,83019.0,83018.0,0.00041652]
[1743349880801,1.09775196,83019.0,83018.0,0.00041652]
[1743349881160,1.00791111,83019.0,83018.0,0.00041652]
[1743349886436,0.98904177,83019.0,83018.0,0.00041652]
[1743349889670,1.02245171,83019.0,83018.0,0.00041652]
[1743349889853,1.94045771,83019.0,83018.0,0.00041652]
[1743349889996,2.06074254,83019.0,83018.0,0.00041652]
[1743349890783,2.25952737,83019.0,83018.0,0.00041652]
[1743349891914,2.25852737,83019.0,83018.0,0.00041652]
[1743349892625,2.25552737,83019.0,83018.0,0.00041652]
[1743349892926,2.26252737,83019.0,83018.0,0.00041652]
[1743349893457,2.25852737,83019.0,83018.0,0.00041652]
[1743349893670,0.56753685,83005.0,83004.0,0.000337]
[1743349893818,0.98342033,83005.0,83004.0,0.000337]
[1743349894019,0.99904666,83005.0,83004.0,0.000337]
[1743349894445,1.01791999,83005.0,83004.0,0.000337]
[1743349895279,0.553023,82996.0,82995.0,0.132577]
[1743349895481,0.553023,82996.0,82995.0,0.13262414]
[1743349895683,0.56869586,82996.0,82995.0,0.13262414]
[1743349896002,0.59996529,82996.0,82995.0,0.13262414]
[1743349896464,0.59996529,82996.0,82995.0,0.13462414]
[1743349896647,0.66639044,82996.0,82995.0,0.13462414]
[1743349896971,0.66639044,82996.0,82995.0,0.13262414]
[1743349897315,0.66639044,82996.0,82995.0,0.13462414]
[1743349897487,0.58109191,82996.0,82995.0,0.13462414]
[1743349898435,0.58109191,82996.0,82995.0,0.12962414]
[1743349899384,0.99697539,82996.0,82995.0,0.12962414]
[1743349899763,1.01584852,82996.0,82995.0,0.12962414]
[1743349899973,1.13613335,82996.0,82995.0,0.12996134]
[1743349900530,1.1506742,82996.0,82995.0,0.12996134]
[1743349901741,1.1506742,82996.0,82995.0,0.12796134]
[1743349901915,1.1516742,82996.0,82995.0,0.00038434]
[1743349902329,1.1536742,82996.0,82995.0,0.00038434]
[1743349903037,1.1526742,82996.0,82995.0,0.00038434]
[1743349903360,1.1516742,82996.0,82995.0,0.00038434]
[1743349903669,1.1546742,82996.0,82995.0,0.00038434]
[1743349904660,1.1536742,82996.0,82995.0,0.00038434]
[1743349904836,1.1556742,82996.0,82995.0,0.00038434]
[1743349906164,1.03538937,82996.0,82995.0,0.00038434]
[1743349906476,1.01651624,82996.0,82995.0,0.00038434]
[1743349909235,2.07859224,82996.0,82995.0,0.00038434]
[1743349909393,1.87433024,82996.0,82995.0,0.00038434]
[1743349909598,1.76817811,82996.0,82995.0,0.00038434]
[1743349909821,1.81463894,82996.0,82995.0,0.00038434]
[1743349910208,0.553051,82987.0,82986.0,0.0007384]
[1743349910440,0.99903025,82987.0,82986.0,0.0007384]
[1743349911011,1.01790585,82987.0,82986.0,0.0007384]
[1743349911242,1.11375468,82987.0,82986.0,0.0007384]
[1743349911751,1.11575468,82987.0,82986.0,0.0007384]
[1743349911975,1.11475468,82987.0,82986.0,0.0007384]
[1743349912138,1.11375468,82987.0,82986.0,0.0007384]
[1743349912338,1.11575468,82987.0,82986.0,0.0007384]
[1743349912620,1.11675468,82987.0,82986.0,0.0007384]
[1743349913048,1.11475468,82987.0,82986.0,0.0007384]
[1743349913258,1.11375468,82987.0,82986.0,0.0007384]
[1743349913629,1.11575468,82987.0,82986.0,0.0007384]
[1743349914417,1.19805468,82987.0,82986.0,0.0007384]
[1743349914823,1.19605468,82987.0,82986.0,0.0007384]
[1743349915291,1.19805468,82987.0,82986.0,0.0007384]
[1743349915840,1.80313551,82987.0,82986.0,0.0007384]
[1743349917062,1.78425991,82987.0,82986.0,0.0007384]
[1743349917527,1.78225991,82987.0,82986.0,0.0007384]
[1743349917998,1.78325991,82987.0,82986.0,0.0007384]
[1743349918200,1.78625991,82987.0,82986.0,0.0007384]
[1743349918858,1.30146391,82987.0,82986.0,0.0007384]
[1743349919237,2.02578291,82987.0,82986.0,0.0007384]
[1743349920046,2.00978291,82987.0,82986.0,0.0007384]
[1743349920649,1.30146391,82987.0,82986.0,0.0007384]
[1743349921402,1.32034128,82987.0,82986.0,0.0007384]
[1743349922632,1.02390762,82987.0,82986.0,0.0007384]
[1743349924529,1.02390762,82987.0,82986.0,0.0010756]
[1743349926538,1.00503025,82987.0,82986.0,0.0010756]
[1743349927296,1.19191425,82987.0,82986.0,0.0010756]
[1743349927605,1.16057625,82987.0,82986.0,0.0010756]
[1743349927744,1.12531508,82987.0,82986.0,0.0010756]
[1743349929518,1.14419205,82987.0,82986.0,0.0010756]
[1743349931039,1.34061905,82987.0,82986.0,0.0010756]
[1743349931467,1.14419205,82987.0,82986.0,0.0010756]
[1743349932022,1.00936637,82987.0,82986.0,0.0010756]
[1743349934137,1.02390722,82987.0,82986.0,0.0010756]
[1743349934547,1.40714305,82987.0,82986.0,0.0010756]
[1743349934791,0.32659085,82986.0,82985.0,1e-08]
[1743349934992,2.31216268,82986.0,82985.0,1e-08]
[1743349935312,1.06438993,82986.0,82985.0,1e-08]
[1743349935447,1.02846886,82986.0,82985.0,1e-08]
[1743349936072,1.03146886,82986.0,82985.0,1e-08]
[1743349936279,1.03546886,82986.0,82985.0,1e-08]
[1743349936473,1.03246886,82986.0,82985.0,1e-08]
[1743349937521,1.00746886,82986.0,82985.0,1e-08]
[1743349937710,1.01146886,82986.0,82985.0,1e-08]
[1743349937924,1.00646886,82986.0,82985.0,1e-08]
[1743349942510,1.02534703,82986.0,82985.0,1e-08]
[1743349946604,1.00646886,82986.0,82985.0,1e-08]
[1743349948188,1.01146886,82986.0,82985.0,1e-08]
[1743349948397,0.5531,82971.0,82960.0,0.0483]
[1743349948534,0.5531,82971.0,82970.0,0.00064035]
[1743349948535,0.56764085,82971.0,82970.0,0.00064035]
[1743349948729,0.58307959,82971.0,82970.0,0.00064035]
[1743349949798,0.60295888,82971.0,82970.0,0.00064035]
[1743349950145,0.60195888,82971.0,82970.0,0.00064035]
[1743349950494,0.69366862,82971.0,82970.0,0.00064035]
[1743349950902,0.69566862,82971.0,82970.0,0.00064035]
[1743349951143,0.60195888,82971.0,82970.0,0.00064035]
[1743349951486,0.59290688,82971.0,82970.0,0.00064035]
[1743349951666,0.59490688,82971.0,82970.0,0.00064035]
[1743349951869,0.35385888,82971.0,82970.0,0.00064035]
[1743349952070,0.8060334,82971.0,82970.0,0.00064035]
[1743349956550,0.92631823,82971.0,82970.0,0.00064035]
[1743349956746,0.90743894,82971.0,82970.0,0.00064035]
[1743349957608,0.93165455,82971.0,82970.0,0.00064035]
[1743349958980,1.17270255,82971.0,82970.0,0.00064035]
[1743349959344,1.18475455,82971.0,82970.0,0.00064035]
[1743349961023,1.20363419,82971.0,82970.0,0.00064035]
[1743349966688,1.18475455,82971.0,82970.0,0.00064035]
[1743349970992,1.17941865,82971.0,82970.0,0.00064035]
[1743349971485,1.02284278,82971.0,82970.0,0.00064035]
[1743349977960,1.00396307,82971.0,82970.0,0.00064035]
[1743349980646,1.02284218,82971.0,82970.0,0.00064035]
[1743349981652,1.00830133,82971.0,82970.0,0.00064035]
[1743349982070,0.45520133,82971.0,82970.0,0.26094035]
[1743349982277,0.43632222,82971.0,82970.0,0.26094035]
[1743349982687,0.44837422,82971.0,82970.0,0.26094035]
[1743349983948,0.58753696,82971.0,82970.0,0.26094035]
[1743349984805,0.90207781,82971.0,82970.0,0.00064035]
[1743349986621,0.8831999,82971.0,82970.0,0.00064035]
[1743349988311,0.90681949,82971.0,82970.0,0.00064035]
[1743349991048,0.92569897,82971.0,82970.0,0.00064035]
[1743349996514,0.90681949,82971.0,82970.0,0.00064035]
[1743349997931,0.8831999,82971.0,82970.0,0.00064035]
[1743349999204,0.76291507,82971.0,82970.0,0.00064035]
[1743350001013,0.7817944,82971.0,82970.0,0.00064035]
[1743350006615,0.76291507,82971.0,82970.0,0.00064035]
[1743350009801,0.78179453,82971.0,82970.0,0.00064035]
[1743350012332,0.86159453,82971.0,82970.0,0.00064035]
[1743350012546,0.98187936,82971.0,82970.0,0.00064035]
[1743350014563,1.90351936,82971.0,82970.0,0.00064035]
[1743350014792,1.84184336,82971.0,82970.0,0.00064035]
[1743350016577,1.8229639,82971.0,82970.0,0.00064035]
[1743350018142,0.9629999,82971.0,82970.0,0.00064035]
[1743350018435,1.8202499,82971.0,82970.0,0.00064035]
[1743350019390,1.7474859,82971.0,82970.0,0.00064035]
[1743350019639,1.7338999,82971.0,82970.0,0.00064035]
[1743350021209,1.75277958,82971.0,82970.0,0.00064035]
[1743350023837,1.62870658,82971.0,82970.0,0.00064035]
[1743350024858,1.62852058,82971.0,82970.0,0.00064035]
[1743350026535,1.6096409,82971.0,82970.0,0.00064035]
[1743350027105,1.62852068,82971.0,82970.0,0.00064035]
[1743350028365,1.74880551,82971.0,82970.0,0.00064035]
[1743350029079,1.10216451,82971.0,82970.0,0.00064035]
[1743350029219,2.20902351,82971.0,82970.0,0.00064035]
[1743350030610,2.21800449,82971.0,82970.0,0.00064035]
[1743350030898,0.31454085,82970.0,82959.0,0.0001686]
[1743350031111,0.56767485,82960.0,82959.0,0.00024817]
[1743350031238,2.49385916,82960.0,82959.0,0.00024817]
[1743350031444,2.31701721,82960.0,82959.0,0.00024817]
[1743350031893,2.36003655,82960.0,82959.0,0.00024817]
[1743350032090,2.48032138,82960.0,82959.0,0.00024817]
[1743350032477,2.46772638,82960.0,82959.0,0.00024817]
[1743350033733,2.46972638,82960.0,82959.0,0.00024817]
[1743350034063,2.47072638,82960.0,82959.0,0.00024817]
[1743350034254,2.47372638,82960.0,82959.0,0.00024817]
[1743350034443,2.29857138,82960.0,82959.0,0.00024817]
[1743350034792,2.22760538,82960.0,82959.0,0.00024817]
[1743350034987,0.56771285,82947.0,82946.0,0.0001685]
[1743350035191,0.553188,82942.0,82941.0,0.004]
[1743350035392,0.56772885,82942.0,82941.0,0.00407961]
[1743350035593,1.35426752,82942.0,82941.0,0.00407961]
[1743350036426,1.05759952,82942.0,82941.0,0.00407961]
[1743350036730,1.17788435,82942.0,82941.0,0.00407961]
[1743350037284,1.12343235,82942.0,82941.0,0.00407961]
[1743350037496,1.09063235,82942.0,82941.0,0.00407961]
[1743350037703,0.70650652,82942.0,82941.0,0.00407961]
[1743350037908,0.70750652,82942.0,82941.0,0.00407961]
[1743350038112,0.70850652,82942.0,82941.0,0.00407961]
[1743350038785,0.73924081,82942.0,82941.0,0.00407961]
[1743350039525,0.61570881,82942.0,82941.0,0.00407961]
[1743350039752,0.73599364,82942.0,82941.0,0.00407961]
[1743350040149,1.15187712,82942.0,82941.0,0.00407961]
[1743350041845,0.76386344,82942.0,82941.0,0.00407961]
[1743350042045,1.00499544,82942.0,82941.0,0.05277961]
[1743350042404,1.01705144,82942.0,82941.0,0.05277961]
[1743350044384,0.76386344,82942.0,82941.0,0.05311661]
[1743350044882,0.77591944,82942.0,82941.0,0.05311661]
[1743350046668,0.75703262,82942.0,82941.0,0.05311661]
[1743350048938,0.77157347,82942.0,82941.0,0.00441661]
[1743350049239,0.8918583,82942.0,82941.0,0.00441661]
[1743350049439,0.012059,82922.0,82917.0,0.0785]
[1743350049784,0.43095757,82922.0,82921.0,0.00021578]
[1743350050049,0.44312552,82922.0,82921.0,0.00021578]
[1743350051014,0.4620145,82922.0,82921.0,0.00021578]
[1743350051224,0.58229933,82922.0,82921.0,0.00021578]
[1743350052227,0.88229933,82922.0,82921.0,0.00021578]
[1743350052647,0.89684018,82922.0,82921.0,0.00021578]
[1743350053043,0.92790082,82922.0,82921.0,0.00021578]
[1743350054818,0.93717463,82922.0,82921.0,0.00021578]
[1743350056708,0.91828565,82922.0,82921.0,0.00021578]
[1743350056912,0.88722501,82922.0,82921.0,0.00021578]
[1743350057213,0.91828565,82922.0,82921.0,0.00021578]
[1743350058442,1.03857048,82922.0,82921.0,0.00021578]
[1743350058642,1.07449155,82922.0,82921.0,0.00021578]
[1743350059460,1.07549155,82922.0,82921.0,0.00021578]
[1743350059763,2.74724702,82922.0,82921.0,0.00021578]
[1743350059978,0.553279,82912.0,82909.0,8e-05]
[1743350060178,0.59888049,82912.0,82911.0,0.00404715]
[1743350060480,0.64985006,82912.0,82911.0,0.00404715]
[1743350060836,0.66874402,82912.0,82911.0,0.00404715]
[1743350061192,0.67074402,82912.0,82911.0,0.00404715]
[1743350061437,0.79097312,82912.0,82911.0,0.00404715]
[1743350062165,0.79197312,82912.0,82911.0,0.00404715]
[1743350062502,0.98825795,82912.0,82911.0,0.00404715]
[1743350063714,1.36822036,82912.0,82911.0,0.00404715]
[1743350065343,1.33715972,82912.0,82911.0,0.00404715]
[1743350065748,2.89843272,82912.0,82911.0,0.00404715]
[1743350065940,2.84084972,82912.0,82911.0,0.00404715]
[1743350066492,2.83984972,82912.0,82911.0,0.00404715]
[1743350066726,2.80916876,82912.0,82911.0,0.00404715]
[1743350067134,2.81216876,82912.0,82911.0,0.00404715]
[1743350067541,2.80916876,82912.0,82911.0,0.00404715]
[1743350067840,2.81416876,82912.0,82911.0,0.00404715]
[1743350068375,2.81116876,82912.0,82911.0,0.00421575]
[1743350068537,2.81616876,82912.0,82911.0,0.00421575]
[1743350068942,2.81616876,82912.0,82902.0,0.0003372]
[1743350068943,0.26784485,82904.0,82903.0,0.00421576]
[1743350069160,0.69862567,82904.0,82903.0,0.00427267]
[1743350069767,0.71752022,82904.0,82903.0,0.00427267]
[1743350069994,0.83780505,82904.0,82903.0,0.00427267]
[1743350070192,1.26108988,82904.0,82903.0,0.00427267]
[1743350070465,1.26908988,82904.0,82903.0,0.00427267]
[1743350070638,0.56789385,82888.0,82884.0,0.78822]
[1743350070836,0.56789385,82888.0,82887.0,0.00038429]
[1743350071141,0.58285179,82888.0,82887.0,0.00038429]
[1743350071357,0.68657384,82888.0,82887.0,0.00038429]
[1743350072027,0.69840188,82888.0,82887.0,0.00038429]
[1743350072437,0.70731413,82888.0,82887.0,0.00038429]
[1743350075404,1.11858774,82888.0,82887.0,0.00038429]
[1743350075605,1.03376266,82888.0,82887.0,0.00038429]
[1743350076083,1.15404749,82888.0,82887.0,0.00038429]
[1743350076645,1.13715052,82888.0,82887.0,0.00038429]
[1743350077873,1.13815052,82888.0,82887.0,0.00038429]
[1743350078490,1.13715052,82888.0,82887.0,0.00038429]
[1743350078692,1.26043535,82888.0,82887.0,0.00038429]
[1743350079357,1.25843535,82888.0,82887.0,0.00038429]
[1743350079717,1.28033332,82888.0,82887.0,0.00038429]
[1743350079916,1.27733332,82888.0,82887.0,0.00038429]
[1743350080335,1.28033332,82888.0,82887.0,0.00038429]
[1743350081152,1.28033332,82888.0,82881.0,0.004]
[1743350081153,0.253371,82882.0,82881.0,0.004]
[1743350081388,1.09947029,82882.0,82881.0,0.00447153]
[1743350081596,1.11436283,82882.0,82881.0,0.00447153]
[1743350081801,0.994078,82882.0,82881.0,0.00447153]
[1743350082920,0.996078,82882.0,82881.0,0.00447153]
[1743350083169,1.09192683,82882.0,82881.0,0.00447153]
[1743350083406,1.09392683,82882.0,82881.0,0.00447153]
[1743350088280,0.998078,82882.0,82881.0,0.00447153]
[1743350088483,0.698078,82882.0,82881.0,0.00447153]
[1743350089151,0.998078,82882.0,82881.0,0.00447153]
[1743350089604,1.01697815,82882.0,82881.0,0.00447153]
[1743350091348,1.0024373,82882.0,82881.0,0.00447153]
[1743350092003,0.7611313,82882.0,82881.0,0.00447153]
[1743350092377,0.7611313,82882.0,82881.0,0.00464023]
[1743350092928,0.7490663,82882.0,82881.0,0.08644023]
[1743350093328,1.0024373,82882.0,82881.0,0.08644023]
[1743350093862,1.0024373,82882.0,82881.0,0.00464023]
[1743350094062,1.12272213,82882.0,82881.0,0.00464023]
[1743350094845,1.0024373,82882.0,82881.0,0.00464023]
[1743350096701,0.98353715,82882.0,82881.0,0.00464023]
[1743350099412,0.43016615,82882.0,82881.0,0.00464023]
[1743350100277,0.68353715,82882.0,82881.0,0.00464023]
[1743350100477,0.43016615,82882.0,82881.0,0.00464023]
[1743350100692,0.67147215,82882.0,82881.0,0.00464023]
[1743350100894,0.68353715,82882.0,82881.0,0.00464023]
[1743350101937,0.80382198,82882.0,82881.0,0.00464023]
[1743350102342,0.68353715,82882.0,82881.0,0.00464023]
[1743350106606,0.68353715,82882.0,82881.0,0.32494923]
[1743350106607,0.43016615,82882.0,82881.0,0.32494923]
[1743350107028,0.43016615,82882.0,82881.0,0.08364023]
[1743350107231,0.44406615,82882.0,82881.0,0.32494923]
[1743350107434,0.51512086,82882.0,82881.0,0.33701423]
[1743350107631,0.44306615,82882.0,82881.0,0.33701423]
[1743350108300,0.44206615,82882.0,82881.0,0.08364023]
[1743350108430,0.45213115,82882.0,82881.0,0.00464023]
[1743350108965,0.44106615,82882.0,82881.0,0.00464023]
[1743350109287,0.44106615,82882.0,82881.0,0.06340523]
[1743350109715,0.44206615,82882.0,82881.0,0.06340523]
[1743350110059,0.46096551,82882.0,82881.0,0.06340523]
[1743350110459,0.53329716,82882.0,82881.0,0.06340523]
[1743350110679,0.46096551,82882.0,82881.0,0.05134023]
[1743350112142,0.47303051,82882.0,82881.0,0.05134023]
[1743350112672,0.46096551,82882.0,82881.0,0.05134023]
[1743350116232,0.46096551,82882.0,82881.0,0.06340523]
[1743350116634,0.46096551,82882.0,82881.0,0.30471423]
[1743350116635,0.44206615,82882.0,82881.0,0.30471423]
[1743350116873,0.44206615,82882.0,82881.0,0.05134023]
[1743350118149,0.03079254,82882.0,82881.0,0.05134023]
[1743350118405,0.03079254,82882.0,82881.0,0.18369006]
[1743350118678,0.03085788,82882.0,82881.0,0.18369006]
[1743350120765,0.0159,82882.0,82881.0,0.18369006]
[1743350123796,0.0159,82882.0,82881.0,0.26731769]
[1743350124043,0.0159,82882.0,82881.0,0.26609006]
[1743350124576,0.0139,82882.0,82881.0,0.26609006]
[1743350136214,0.0139,82882.0,82881.0,0.40297006]
[1743350138168,0.0139,82882.0,82881.0,0.97729006]
[1743350140453,0.0139,82882.0,82881.0,0.89489006]
[1743350141107,0.0139,82882.0,82881.0,0.84819006]
[1743350142240,0.0139,82882.0,82881.0,0.84784577]
[1743350144077,0.0139,82882.0,82881.0,0.84691186]
[1743350147850,0.0139,82882.0,82881.0,0.71003186]
[1743350148051,0.0139,82882.0,82881.0,0.84691186]
[1743350149849,0.014237,82882.0,82881.0,0.71003186]
[1743350150051,0.014237,82882.0,82881.0,0.84691186]
[1743350151614,0.014237,82882.0,82881.0,0.97221186]
[1743350152622,0.014237,82882.0,82881.0,0.97321186]
[1743350152964,0.014237,82882.0,82881.0,0.99661726]
[1743350153375,0.015237,82882.0,82881.0,0.99761726]
[1743350153786,0.015237,82882.0,82881.0,0.99961726]
[1743350154025,0.015237,82882.0,82881.0,0.99761726]
[1743350154476,0.015237,82882.0,82881.0,0.99961726]
[1743350168477,0.08685812,82896.0,82895.0,0.253332]
[1743350168652,0.08685812,82896.0,82895.0,0.51041683]
[1743350168991,0.241209,82916.0,82901.0,0.253313]
[1743350169272,0.241209,82916.0,82901.0,0.37359783]
[1743350169630,0.01889377,82907.0,82901.0,0.37359783]
[1743350171190,0.01889377,82907.0,82901.0,0.51039783]
[1743350171570,0.0013374,82902.0,82901.0,0.51039783]
[1743350179642,0.02023116,82902.0,82901.0,0.51039783]
[1743350186694,0.0013374,82902.0,82901.0,0.51039783]
[1743350189526,0.02023123,82902.0,82901.0,0.51039783]
[1743350190782,0.02023123,82902.0,82901.0,0.12028483]
[1743350191097,0.09823123,82902.0,82901.0,0.148822]
[1743350191457,0.09823123,82902.0,82901.0,0.390073]
[1743350192265,0.11321548,82902.0,82901.0,0.390073]
[1743350192517,0.09823123,82902.0,82901.0,0.390073]
[1743350192993,0.11321548,82902.0,82901.0,0.390073]
[1743350194373,0.11321548,82902.0,82901.0,0.253313]
[1743350196702,0.09432165,82902.0,82901.0,0.253313]
[1743350198139,0.09432165,82902.0,82900.0,0.18676]
[1743350199430,0.09432165,82902.0,82900.0,0.428012]
[1743350199648,0.03521577,82902.0,82900.0,0.428012]
[1743350199925,0.03521577,82902.0,82901.0,0.13676]
[1743350200339,0.03421577,82902.0,82901.0,0.13676]
[1743350200870,0.03521577,82902.0,82901.0,0.13676]
[1743350201225,0.03621577,82902.0,82901.0,0.13676]
[1743350201472,0.03621577,82902.0,82900.0,0.05]
[1743350201807,0.03621577,82902.0,82901.0,0.13676]
[1743350203315,0.03421577,82902.0,82901.0,0.13676]
[1743350203650,0.03521577,82902.0,82901.0,0.13676]
[1743350204210,0.03621577,82902.0,82901.0,0.13676]
[1743350205029,0.03621577,82902.0,82900.0,0.05]
[1743350205257,0.03621577,82902.0,82901.0,0.13676]
[1743350206688,0.01532165,82902.0,82901.0,0.13676]
[1743350206898,0.01632165,82902.0,82901.0,0.13676]